fUSD/lending_fUSD_20240103
["ID","MTS","AMOUNT","RATE_DAILY","PERIOD"]
[310032572,1704291192557,-150.0,0.00032877,2]
[310032573,1704291192567,-150.0,0.00032877,2]
[310032574,1704291192578,-150.0,0.00032877,2]
[310032575,1704291192588,-150.0,0.00032877,2]
[310032576,1704291192598,-150.0,0.00032877,2]
[310032577,1704291192607,-150.0,0.00032877,2]
[310032578,1704291192617,-150.0,0.00032877,2]
[310032579,1704291192626,-164.58935839,0.00032877,2]
[310032580,1704291192636,-250.0,0.00032877,2]
[310032581,1704291192646,-250.0,0.00032877,2]
[310032582,1704291192656,-250.0,0.00032877,2]
[310032583,1704291192667,-250.0,0.00032877,2]
[310032584,1704291192676,-250.0,0.00032877,2]
[310032585,1704291192686,-250.0,0.00032877,2]
[310032586,1704291192696,-250.0,0.00032877,2]
[310032587,1704291192706,-250.0,0.00032877,2]
[310032588,1704291192715,-250.0,0.00032877,2]
[310032589,1704291192725,-250.0,0.00032877,2]
[310032590,1704291192738,-264.38108609,0.00032877,2]
[310032591,1704291192748,-3801.0,0.00032877,5]
[310032592,1704291192757,-155.0,0.00032877,2]
[310032593,1704291192767,-1340.76,0.0003288,2]
[310032594,1704291192777,-1340.76,0.0003288,2]
[310032595,1704291192787,-1340.76,0.0003288,2]
[310032596,1704291192797,-1340.76,0.0003288,2]
[310032597,1704291192807,-1340.76,0.0003288,2]
[310032598,1704291192817,-1417.055742,0.00032882,2]
[310032599,1704291192827,-397.919636,0.00032882,2]
[310032600,1704291192837,-314.175571,0.00032882,2]
[310032601,1704291192848,-413.433208,0.00032882,2]
[310032602,1704291192857,-196.722855,0.00032882,2]
[310032603,1704291192867,-184.4,0.00032883,2]
[310032604,1704291192879,-456.40103,0.00032898,2]
[310032605,1704291192889,-3907.97717211,0.000329,2]
[310032606,1704291192898,-527.51386169,0.000329,2]
[310032607,1704291192908,-8000.0,0.000329,2]
[310032608,1704291192918,-345.40103,0.00032948,2]
[310032609,1704291192928,-212.0,0.0003296,2]
[310032610,1704291192938,-1229.68546346,0.00032984,5]
[310032611,1704291192948,-723.91,0.00032997,2]
[310032612,1704291192958,-407.32270135,0.00032998,5]
[310032613,1704291192968,-456.40103,0.00032998,2]
[310032614,1704291192978,-100000.0,0.00033,3]
[310032615,1704291192989,-155.0,0.00033,2]
[310032616,1704291193000,-1657.03048499,0.00033,4]
[310032617,1704291193010,-664.47444057,0.00033,34]
[310032618,1704291193019,-219.96018864,0.00033,4]
[310032619,1704291193029,-1010.0,0.00033,2]
[310032620,1704291193039,-1000.0,0.00033,2]
[310032621,1704291193049,-3431.83607064,0.00033,2]
[310032622,1704291193058,-1000.0,0.00033,2]
[310032623,1704291193067,-3000.0,0.00033,7]
[310032624,1704291193077,-2000.0,0.00033,2]
[310032625,1704291193086,-3000.0,0.00033,2]
[310032626,1704291193095,-600.0,0.00033,3]
[310032627,1704291193105,-6767.83924862,0.00033,4]
[310032628,1704291193115,-181.902195,0.00033018,2]
[310032629,1704291193124,-171.918147,0.00033018,2]
[310032630,1704291193134,-208.0,0.0003302,2]
[310032631,1704291193143,-345.40103,0.00033048,2]
[310032632,1704291193153,-500.0,0.0003305,2]
[310032633,1704291193163,-456.40103,0.00033098,2]
[310032634,1704291193173,-345.40103,0.00033148,2]
[310032635,1704291193182,-150.1,0.00033159,2]
[310032636,1704291193192,-456.40103,0.00033198,2]
[310032637,1704291193202,-453.0,0.000332,2]
[310032638,1704291193211,-342.0,0.000332,2]
[310032639,1704291193220,-1846.0,0.00033237,2]
[310032640,1704291193229,-833.0,0.00033237,2]
[310032641,1704291193241,-3026.0,0.00033237,2]
[310032642,1704291193250,-942.0,0.00033237,2]
[310032643,1704291193260,-1257.0,0.00033237,2]
[310032644,1704291193275,-992.0,0.00033237,2]
[310032645,1704291193285,-1138.0,0.00033237,2]
[310032646,1704291193295,-1926.0,0.00033237,2]
[310032647,1704291193305,-424.0,0.00033237,2]
[310032648,1704291193315,-506.0,0.00033237,2]
[310032649,1704291193324,-234.0,0.00033237,2]
[310032650,1704291193334,-750.0,0.00033237,2]
[310032651,1704291193343,-318.0,0.00033237,2]
[310032652,1704291193353,-345.40103,0.00033248,2]
[310032653,1704291193363,-2894.0,0.00033266,2]
[310032654,1704291193373,-2265.0,0.00033266,2]
[310032655,1704291193382,-19633.0,0.00033266,2]
[310032656,1704291193391,-19369.225,0.00033266,2]
[310032657,1704291193401,-4388.0,0.00033266,2]
[310032658,1704291193411,-5554.0,0.00033266,2]
[310032659,1704291193421,-1026.0,0.00033266,2]
[310032660,1704291193430,-695.0,0.00033275,5]
[310032661,1704291193443,-500.0,0.00033277,2]
[310032662,1704291193452,-200.0,0.00033277,2]
[310032663,1704291193462,-1417.055742,0.00033288,2]
[310032664,1704291193472,-397.919636,0.00033288,2]
[310032665,1704291193482,-314.175571,0.00033288,2]
[310032666,1704291193496,-413.433208,0.00033288,2]
[310032667,1704291193506,-196.722855,0.00033288,2]
[310032668,1704291193515,-456.40103,0.00033298,2]
[310032669,1704291193524,-500.0,0.00033308,10]
[310032670,1704291193534,-151.89,0.00033333,2]
[310032671,1704291193544,-150.0,0.00033333,2]
[310032672,1704291193554,-150.0,0.00033333,2]
[310032673,1704291193563,-150.0,0.00033333,2]
[310032674,1704291193573,-150.0,0.00033333,2]
[310032675,1704291193583,-150.0,0.00033333,2]
[310032676,1704291193592,-150.0,0.00033333,2]
[310032677,1704291193602,-150.0,0.00033333,2]
[310032678,1704291193611,-150.0,0.00033333,2]
[310032679,1704291193621,-150.0,0.00033333,2]
[310032680,1704291193631,-150.0,0.00033333,2]
[310032681,1704291193641,-150.0,0.00033333,2]
[310032682,1704291193650,-150.0,0.00033333,2]
[310032683,1704291193660,-150.0,0.00033333,2]
[310032684,1704291193670,-150.0,0.00033333,2]
[310032685,1704291193680,-150.0,0.00033333,2]
[310032686,1704291193689,-150.0,0.00033333,2]
[310032687,1704291193699,-150.0,0.00033333,2]
[310032688,1704291193708,-150.0,0.00033333,2]
[310032689,1704291193717,-150.0,0.00033333,2]
[310032690,1704291193727,-150.0,0.00033333,2]
[310032691,1704291193739,-150.0,0.00033333,2]
[310032692,1704291193749,-150.0,0.00033333,2]
[310032693,1704291193759,-345.40103,0.00033348,2]
[310032694,1704291193768,-212.0,0.0003335,2]
[310032695,1704291193778,-151.22,0.00033359,2]
[310032696,1704291193787,-152.0,0.00033387,7]
[310032697,1704291193797,-456.40103,0.00033398,2]
[310032698,1704291193806,-207.0,0.000334,2]
[310032699,1704291193816,-208.0,0.000334,2]
[310032700,1704291193825,-1000.0,0.000334,7]
[310032701,1704291193835,-345.40103,0.00033448,2]
[310032702,1704291193845,-150.0,0.00033462,2]
[310032703,1704291193854,-150.0,0.00033462,2]
[310032704,1704291193864,-5000.0,0.00033484,2]
[310032705,1704291193873,-456.40103,0.00033498,2]
[310032706,1704291193883,-390.77820039,0.000335,2]
[310032707,1704291193892,-240.814,0.00033504,4]
[310032708,1704291193901,-240.814,0.00033504,4]
[310032709,1704291193910,-240.815,0.00033504,4]
[310032710,1704291193920,-240.814,0.00033504,4]
[310032711,1704291193930,-240.815,0.00033504,4]
[310032712,1704291193939,-689.91,0.00033533,2]
[310032713,1704291193949,-345.40103,0.00033548,2]
[310032714,1704291193958,-181.902195,0.00033559,2]
[310032715,1704291193968,-171.918147,0.00033559,2]
[310032716,1704291193977,-201.0,0.00033566,12]
[310032717,1704291193989,-1482.15,0.0003357,2]
[310032718,1704291193999,-189.0,0.0003357,2]
[310032719,1704291194008,-456.40103,0.00033598,2]
[310032720,1704291194018,-500.0,0.00033635,2]
[310032721,1704291194028,-345.40103,0.00033648,2]
[310032722,1704291194037,-1417.055742,0.00033694,2]
[310032723,1704291194047,-397.919636,0.00033694,2]
[310032724,1704291194056,-314.175571,0.00033694,2]
[310032725,1704291194065,-413.433208,0.00033694,2]
[310032726,1704291194074,-196.722855,0.00033694,2]
[310032727,1704291194084,-456.40103,0.00033698,2]
[310032728,1704291194094,-1000.0,0.000337,7]
[310032729,1704291194103,-275.5,0.000337,2]
[310032730,1704291194113,-500.0,0.00033725,2]
[310032731,1704291194122,-212.0,0.0003374,2]
[310032732,1704291194132,-345.40103,0.00033748,2]
[310032733,1704291194141,-207.0,0.0003378,2]
[310032734,1704291194151,-208.0,0.0003378,2]
[310032735,1704291194159,-153.84,0.0003379,2]
[310032736,1704291194167,-456.40103,0.00033798,2]
[310032737,1704291194176,-345.40103,0.00033848,2]
[310032738,1704291194186,-500.0,0.00033856,10]
[310032739,1704291194196,-500.0,0.00033856,7]
[310032740,1704291194205,-500.0,0.00033856,7]
[310032741,1704291194215,-1912.2801099,0.00033877,2]
[310032742,1704291194224,-271.9255742,0.00033877,2]
[310032743,1704291194234,-456.40103,0.00033898,2]
[310032744,1704291194245,-121881.6,0.00033899,2]
[310032745,1704291194254,-148966.4,0.00033899,2]
[310032746,1704291194263,-51093.131637,0.000339,3]
[310032747,1704291194273,-10840.9603554,0.000339,2]
[310032748,1704291199808,-500.0,0.00032876,2]
[310032749,1704291199817,-500.0,0.00032876,2]
[310032750,1704291199827,-513.28148936,0.000339,2]
[310032751,1704291200478,-252.88919684,0.00022675,2]
[310032752,1704291200491,-194.4821855,0.00029351,2]
[310032753,1704291200500,-150.0,0.00029406,2]
[310032754,1704291200511,-194.4821855,0.00029469,2]
[310032755,1704291200520,-150.0,0.00029501,2]
[310032756,1704291200529,-150.0,0.00029515,2]
[310032757,1704291200538,-150.0,0.00029536,2]
[310032758,1704291200548,-150.0,0.00029613,2]
[310032759,1704291200558,-150.0,0.00029689,2]
[310032760,1704291200567,-150.0,0.00029721,2]
[310032761,1704291200577,-150.0,0.00029735,2]
[310032762,1704291200586,-150.0,0.00029745,2]
[310032763,1704291200596,-150.0,0.00029747,2]
[310032764,1704291200605,-150.0,0.00029748,2]
[310032765,1704291200614,-150.0,0.00029767,2]
[310032766,1704291200623,-150.0,0.0002979,2]
[310032767,1704291200633,-150.0,0.00029792,2]
[310032768,1704291200642,-150.0,0.00029793,2]
[310032769,1704291200651,-150.0,0.00029805,2]
[310032770,1704291200660,-150.0,0.00029815,2]
[310032771,1704291200670,-150.0,0.00029816,2]
[310032772,1704291200680,-150.0,0.00029828,2]
[310032773,1704291200688,-150.0,0.0002986,2]
[310032774,1704291200698,-150.0,0.00029867,2]
[310032775,1704291200708,-150.0,0.00029868,2]
[310032776,1704291200722,-150.0,0.00029868,2]
[310032777,1704291200733,-150.0,0.00029869,2]
[310032778,1704291200744,-150.0,0.00029879,2]
[310032779,1704291200753,-150.0,0.00029881,2]
[310032780,1704291200766,-150.0,0.00029906,2]
[310032781,1704291200776,-150.0,0.00029911,2]
[310032782,1704291200786,-150.0,0.00029917,2]
[310032783,1704291200796,-150.0,0.00029929,2]
[310032784,1704291200805,-150.0,0.00029945,2]
[310032785,1704291200815,-150.0,0.00029947,2]
[310032786,1704291200825,-150.0,0.00029958,2]
[310032787,1704291200835,-194.4821855,0.00029959,2]
[310032788,1704291200845,-150.0,0.00029967,2]
[310032789,1704291200855,-150.0,0.0002998,2]
[310032790,1704291200864,-151.0,0.00029985,7]
[310032791,1704291200873,-150.0,0.00029993,2]
[310032792,1704291200882,-500.0,0.00032876,2]
[310032793,1704291200892,-500.0,0.00032876,2]
[310032794,1704291200901,-500.0,0.00032876,2]
[310032795,1704291200910,-500.0,0.00032876,2]
[310032796,1704291200919,-500.0,0.00032876,2]
[310032797,1704291200929,-500.0,0.00032876,2]
[310032798,1704291200939,-500.0,0.00032876,2]
[310032799,1704291200948,-500.0,0.00032876,2]
[310032800,1704291200957,-500.0,0.00032876,2]
[310032801,1704291200967,-500.0,0.00032876,2]
[310032802,1704291200977,-468.53203634,0.00032876,2]
[310032803,1704291201000,-31.46796366,0.00032876,2]
[310032804,1704291201011,-298.5157112,0.00032876,2]
[310032805,1704291201021,-500.0,0.00032876,2]
[310032806,1704291201031,-500.0,0.00032876,2]
[310032807,1704291201040,-500.0,0.00032876,2]
[310032808,1704291201050,-500.0,0.00032876,2]
[310032809,1704291201059,-500.0,0.00032876,2]
[310032810,1704291201069,-500.0,0.00032876,2]
[310032811,1704291201078,-500.0,0.00032876,2]
[310032812,1704291201087,-500.0,0.00032876,2]
[310032813,1704291201096,-428.05774572,0.00032876,2]
[310032814,1704291201107,-500.0,0.00032876,2]
[310032815,1704291201118,-500.0,0.00032876,2]
[310032816,1704291201127,-213.24057941,0.00032876,2]
[310032817,1704291201140,-2953.60398947,0.00032876,2]
[310032818,1704291201152,-477.62820719,0.00032876,2]
[310032819,1704291201165,-8347.41722393,0.00032876,2]
[310032820,1704291201176,-500.0,0.00032876,2]
[310032821,1704291201186,-500.0,0.00032876,2]
[310032822,1704291201195,-500.0,0.00032876,2]
[310032823,1704291201204,-194.15254992,0.00032876,2]
[310032824,1704291201214,-97.88773558,0.00032876,2]
[310032825,1704291201227,-402.11226442,0.00032876,2]
[310032826,1704291201236,-500.0,0.00032876,2]
[310032827,1704291201248,-11991.89,0.00032876,2]
[310032828,1704291201257,-500.0,0.00032876,2]
[310032829,1704291201267,-500.0,0.00032876,2]
[310032830,1704291201276,-500.0,0.00032876,2]
[310032831,1704291201287,-571.16869032,0.00032876,2]
[310032832,1704291201296,-1319.09677859,0.00032876,2]
[310032833,1704291201310,-1264.23734343,0.00032876,2]
[310032834,1704291201322,-9408.55587798,0.00032876,2]
[310032835,1704291201331,-500.0,0.00032876,2]
[310032836,1704291201341,-500.0,0.00032876,2]
[310032837,1704291201351,-9238.1371613,0.00032876,2]
[310032838,1704291201368,-150.0,0.00029817,2]
[310032839,1704291201377,-274.88777256,0.00032876,2]
[310032840,1704291201390,-2478.86506614,0.00032876,2]
[310032841,1704291201400,-269.76584711,0.00032876,2]
[310032842,1704291201434,-150.0,0.00029766,2]
[310032843,1704291201443,-150.0,0.00029928,2]
[310032844,1704291201453,-150.0,0.00029963,2]
[310032845,1704291201463,-150.0,0.00029991,2]
[310032846,1704291201473,-230.23415289,0.00032876,2]
[310032847,1704291201482,-500.0,0.00032876,2]
[310032848,1704291201494,-203.05955649,0.00032876,2]
[310032849,1704291201506,-293.51421104,0.00032876,2]
[310032850,1704291201518,-325.49129769,0.00032876,2]
[310032851,1704291201951,-2084.0,0.00026909,2]
[310032852,1704291201961,-150.0,0.00029794,2]
[310032853,1704291201970,-1532.500001,0.00032278,7]
[310032863,1704291381941,175.85,0.00029438,120]
[310032869,1704291555944,393.75597229,0.00022372,2]
[310032872,1704291586178,492.9397083,0.00022372,2]
[310032874,1704291602983,620.06046243,0.00021694,2]
[310032875,1704291611891,159.72882363,0.00022498,2]
[310032876,1704291643507,727.07567005,0.00021,2]
[310032877,1704291653734,556.99029928,0.00022485,2]
[310032880,1704291694945,446.07489463,0.00020112,2]
[310032882,1704291708238,556.99029928,0.00022485,2]
[310032883,1704291720633,3411.7405,0.000225,2]
[310032884,1704291721303,1134.11305141,0.00022,2]
[310032885,1704291721449,2360.80192714,0.00021466,2]
[310032902,1704291743980,19358.9995,0.000225,2]
[310032920,1704291762414,185.66741722,0.00020112,2]
[310032932,1704291768034,291.28624859,0.00020112,2]
[310032943,1704291773284,155.0,0.00020112,2]
[310032952,1704291778403,155.0,0.000225,2]
[310032955,1704291779074,202.52319538,0.000225,2]
[310032962,1704291784853,500.0,0.000225,2]
[310032963,1704291785899,281.95610178,0.000225,2]
[310032964,1704291786020,291.28624859,0.000225,2]
[310032976,1704291795707,531.79797059,0.000225,2]
[310032980,1704291796413,167.10064555,0.000225,2]
[310032983,1704291797676,155.0,0.000225,2]
[310032989,1704291806078,849.11296638,0.000225,4]
[310032993,1704291807886,236.31864757,0.000225,2]
[310032994,1704291808020,195.82900777,0.000225,2]
[310033000,1704291813693,549.50442344,0.000225,2]
[310033009,1704291824078,227.39078341,0.000225,4]
[310033026,1704291844831,7417.2255,0.000225,2]
[310033060,1704291911357,1813.7412,0.00022498,2]
[310033096,1704291939337,8708.14654835,0.00029,30]
[310033097,1704291939448,1210.15,0.00022498,2]
[310033102,1704291948178,2108.9028,0.00022498,2]
[310033106,1704291954246,1956.1559,0.00022498,2]
[310033111,1704291962357,159.09511322,0.00022484,2]
[310033118,1704291971313,-5000.0,0.0002258,2]
[310033119,1704291971336,-1776.90277835,0.00022581,2]
[310033120,1704291971359,-150.0,0.00022581,2]
[310033121,1704291971386,-234.46049573,0.00022582,2]
[310033122,1704291971409,-1848.22696457,0.00022582,2]
[310033123,1704291971447,-400.0,0.00022583,2]
[310033124,1704291971469,-155.0,0.00022583,2]
[310033125,1704291971494,-150.0,0.00022588,2]
[310033126,1704291971518,-20002.46624699,0.0002259,2]
[310033127,1704291971541,-3502.20788108,0.00022591,2]
[310033128,1704291971564,-172.75471982,0.00022595,2]
[310033129,1704291971592,-4620.54106348,0.00022596,2]
[310033130,1704291971616,-522.07104133,0.00022596,2]
[310033131,1704291971644,-155.0,0.00022596,2]
[310033132,1704291971667,-3425.9123988,0.00022596,4]
[310033133,1704291971689,-317.68758824,0.00022598,2]
[310033134,1704291971712,-317.68758824,0.00022598,2]
[310033135,1704291971736,-1041.50170874,0.00022598,2]
[310033136,1704291971759,-155.0,0.00022598,2]
[310033137,1704291971781,-1358.70862606,0.00022598,2]
[310033138,1704291971804,-2322.23577265,0.00022598,2]
[310033139,1704291971826,-369.92055027,0.00022598,2]
[310033140,1704291971848,-220.31430902,0.00022598,2]
[310033141,1704291971870,-485.6371779,0.00022598,2]
[310033142,1704291971895,-626.9553963,0.00022598,2]
[310033143,1704291971916,-696.96956489,0.00022598,2]
[310033144,1704291971937,-375.58716419,0.00022598,2]
[310033145,1704291971959,-3317.54959286,0.00022598,2]
[310033146,1704291971980,-756.37620941,0.00022598,2]
[310033147,1704291972001,-278.37646276,0.00022598,2]
[310033148,1704291972022,-301.27394571,0.00022598,2]
[310033149,1704291972043,-196.25088216,0.00022598,2]
[310033150,1704291972065,-249.43117852,0.00022598,2]
[310033151,1704291972086,-244.08411725,0.00022598,2]
[310033152,1704291972109,-526.06235721,0.00022598,2]
[310033153,1704291972135,-937.59787031,0.00022598,2]
[310033154,1704291972159,-3035.27412639,0.00022598,2]
[310033155,1704291972181,-155.0,0.00022598,2]
[310033156,1704291972203,-4472.4902003,0.00022598,2]
[310033157,1704291972225,-576.6154751,0.00022598,2]
[310033158,1704291972247,-11642.4584435,0.00022598,2]
[310033159,1704291972269,-104263.11423629,0.00022598,2]
[310033160,1704291972290,-16709.42947732,0.00022598,2]
[310033161,1704291972312,-10525.07510932,0.00022599,2]
[310033162,1704291972335,-100000.0,0.000226,2]
[310033164,1704291972577,-931.13114601,0.00023,2]
[310033169,1704291976224,2637.02875884,0.000229,2]
[310033184,1704292013930,174.53,0.00016712,2]
[310033192,1704292052575,-502.31,0.00038312,30]
[310033193,1704292052598,-2174.81804714,0.00038312,30]
[310033194,1704292052623,-25400.0,0.00038312,30]
[310033195,1704292052647,-330.5384286,0.00038312,30]
[310033196,1704292052672,-282.94775511,0.00038312,30]
[310033197,1704292052700,-645.10881638,0.00038312,30]
[310033198,1704292052725,-2219.16831005,0.00038312,30]
[310033199,1704292052749,-713.5156789,0.00038312,30]
[310033200,1704292052773,-1940.84180975,0.00038312,30]
[310033201,1704292052798,-509.12972913,0.00038312,30]
[310033202,1704292052822,-2281.73357852,0.00038312,30]
[310033203,1704292052843,-501.17061777,0.00038312,30]
[310033204,1704292052865,-1512.27662536,0.00038312,30]
[310033205,1704292052889,-2482.08278092,0.00038312,30]
[310033206,1704292052911,-6000.0,0.00038312,30]
[310033207,1704292052934,-11114.29437534,0.00038312,30]
[310033208,1704292052960,-676.67991015,0.00038312,30]
[310033209,1704292052984,-631.56016314,0.00038312,30]
[310033210,1704292053006,-8146.65612694,0.00038312,30]
[310033212,1704292053029,-5041.35554675,0.00038312,30]
[310033213,1704292053052,-10614.01223835,0.00038312,30]
[310033214,1704292053075,-8565.11288624,0.00038312,30]
[310033215,1704292053098,-13522.84831845,0.00038312,30]
[310033216,1704292053120,-7146.89692498,0.00038312,30]
[310033217,1704292053143,-8378.8726484,0.00038312,30]
[310033218,1704292053166,-8182.86362031,0.00038312,30]
[310033219,1704292053189,-9010.72918061,0.00038312,30]
[310033220,1704292053213,-19232.13522123,0.00038312,30]
[310033221,1704292053236,-24140.9457393,0.00038312,30]
[310033222,1704292053268,-2323.39660544,0.00038312,30]
[310033223,1704292053295,-20000.0,0.00038312,30]
[310033224,1704292053319,-35522.0,0.00038312,30]
[310033225,1704292053614,-427.12664789,0.00038312,30]
[310033226,1704292053642,-1427.09389098,0.00038312,30]
[310033227,1704292053666,-2445.37077581,0.00038312,30]
[310033228,1704292053689,-9218.686456,0.00038312,30]
[310033229,1704292053713,-386.51085348,0.00038312,30]
[310033230,1704292053737,-30597.52597093,0.00038312,30]
[310033231,1704292053759,-5992.64119502,0.00038312,30]
[310033232,1704292053784,-8696.43781386,0.00038312,30]
[310033233,1704292053806,-387.42097834,0.00038312,30]
[310033234,1704292053828,-300.0,0.00038312,30]
[310033235,1704292053852,-300.0,0.00038312,30]
[310033236,1704292053876,-300.0,0.00038312,30]
[310033237,1704292053902,-300.0,0.00038312,30]
[310033238,1704292053926,-300.0,0.00038312,30]
[310033239,1704292053953,-300.0,0.00038312,30]
[310033240,1704292053976,-300.0,0.00038312,30]
[310033241,1704292054000,-6335.7733,0.00038312,30]
[310033242,1704292054023,-983.11827225,0.00038312,30]
[310033243,1704292054045,-837.28192831,0.00038312,30]
[310033244,1704292054068,-3650.14338043,0.00038312,30]
[310033245,1704292054089,-282.39368379,0.00038312,30]
[310033246,1704292054112,-261.99275347,0.00038312,30]
[310033247,1704292054135,-23738.46979532,0.00038312,30]
[310033248,1704292054158,-238.11114413,0.00038312,30]
[310033249,1704292054180,-1866.0962305,0.00038312,30]
[310033250,1704292054203,-16207.82265976,0.00038312,30]
[310033251,1704292054225,-500.0,0.00038312,30]
[310033252,1704292054247,-324.17210246,0.00038312,120]
[310033253,1704292054271,-465.92172566,0.00038312,120]
[310033254,1704292054296,-240.53912984,0.00038312,30]
[310033255,1704292054331,-500.0,0.00038312,30]
[310033256,1704292054355,-2200.0,0.00038312,31]
[310033257,1704292054378,-177.94121501,0.00038312,120]
[310033258,1704292054402,-5917.62410637,0.00038312,120]
[310033259,1704292054426,-427990.27864387,0.00038312,120]
[310033260,1704292054452,-1448.0,0.00038312,120]
[310033261,1704292054478,-366.20846401,0.00038312,120]
[310033262,1704292054503,-500.0,0.00038312,30]
[310033263,1704292054530,-158.36622864,0.00038312,120]
[310033264,1704292054554,-94155.42156653,0.00038312,120]
[310033265,1704292054578,-81414.51746637,0.00038312,30]
[310033266,1704292054603,-10088.01482068,0.00038312,120]
[310033267,1704292054628,-1919.05491858,0.00038312,120]
[310033268,1704292054653,-206.20035886,0.00038312,120]
[310033269,1704292054679,-1054.33229094,0.00038312,120]
[310033270,1704292054703,-2123.04156154,0.00038312,120]
[310033271,1704292054725,-463.01365318,0.00038312,120]
[310033272,1704292054749,-563.20075602,0.00038312,120]
[310033273,1704292054772,-293.74407178,0.00038312,120]
[310033274,1704292054795,-3260.55371516,0.00038312,120]
[310033275,1704292054817,-236.29324261,0.00038312,120]
[310033276,1704292054847,-28729.89140595,0.00038312,120]
[310033277,1704292054876,-2057.12271,0.00038312,30]
[310033278,1704292054905,-465.063442,0.00038312,63]
[310033279,1704292054929,-304.345742,0.00038312,30]
[310033280,1704292054954,-1962.113917,0.00038312,30]
[310033283,1704292065911,-151.0,0.00030651,120]
[310033284,1704292065936,-151.0,0.00031277,30]
[310033285,1704292065979,-1000.0,0.00032,32]
[310033286,1704292066111,-49659.7168346,0.00033,30]
[310033287,1704292066140,-318.07203018,0.000339,30]
[310033288,1704292066167,-151.74559818,0.00033929,30]
[310033289,1704292066192,-345.73203912,0.00033999,30]
[310033290,1704292066224,-1050.0,0.00034,35]
[310033291,1704292066248,-207.19722374,0.00034,30]
[310033292,1704292066280,-173.81,0.00034247,120]
[310033293,1704292066306,-151.74559818,0.00034429,30]
[310033294,1704292066334,-42179.83033414,0.0003468,30]
[310033295,1704292066372,-151.74559818,0.00034929,30]
[310033296,1704292066400,-300.0,0.00035,36]
[310033297,1704292066425,-900.0,0.00035,36]
[310033298,1704292066453,-2000.0,0.00035,30]
[310033299,1704292066478,-259.0,0.00035,120]
[310033300,1704292066501,-13148.15300191,0.00035,30]
[310033301,1704292066534,-151.74559818,0.00035429,30]
[310033302,1704292066564,-1049.36,0.00035499,30]
[310033303,1704292066589,-1886500.14614359,0.000355,30]
[310033305,1704292070868,-2000000.0,0.000355,30]
[310033564,1704292232291,-155.0,0.00023999,2]
[310033565,1704292232301,-314.71895744,0.00023999,2]
[310033566,1704292232311,-28.3239635,0.00024,2]
[310033567,1704292232323,-401.80155067,0.00024,2]
[310033568,1704292232333,-361.57080523,0.00024686,2]
[310033569,1704292232363,-846.21,0.00024686,2]
[310033570,1704292232379,-1429.24795355,0.00024686,2]
[310033571,1704292232389,-198.07012765,0.00025,2]
[310033572,1704292232399,-201.35180856,0.00025,2]
[310033573,1704292232408,-1015.15413898,0.00025609,2]
[310033574,1704292232418,-212.34,0.00025611,2]
[310033575,1704292232427,-443.83597126,0.00026471,3]
[310033576,1704292232444,-2193.19278752,0.00026471,3]
[310033577,1704292232454,-212.34,0.0002659,2]
[310033578,1704292232465,-150.0,0.00026792,2]
[310033579,1704292232475,-155.0,0.00026793,2]
[310033580,1704292232484,-499.99,0.00026793,2]
[310033581,1704292232494,-999.99,0.00026793,2]
[310033582,1704292232504,-645.14,0.00026793,2]
[310033583,1704292232513,-155.0,0.00027397,2]
[310033584,1704292232523,-250.0,0.00027397,2]
[310033585,1704292232533,-2855.4268,0.000274,2]
[310033586,1704292232542,-250.0,0.000274,2]
[310033587,1704292232552,-671.79585293,0.000275,4]